bitfinex/quotes_SOLUSD_20220104
["timestamp","ask_amount","ask_price","bid_price","bid_amount"]
[1641265580954,22.7312,167.35,167.22,0.76]
[1641265581152,1.3603,167.34,167.22,0.26]
[1641265581352,1.8603,167.34,167.22,0.26]
[1641265581554,2.1203,167.34,167.21,26.587]
[1641265581752,28.28911502,167.33,167.22,28.13792653]
[1641265581953,28.78911502,167.33,167.22,28.13792653]
[1641265582153,2.73062781,167.32,167.22,28.39792653]
[1641265582356,3.23062781,167.32,167.22,28.39792653]
[1641265582557,3.49062781,167.32,167.22,28.39792653]
[1641265582955,3.49062781,167.32,167.22,0.26]
[1641265583355,3.49062781,167.32,167.21,24.8008]
[1641265583957,26.63702781,167.32,167.21,24.8008]
[1641265584159,27.92182781,167.32,167.21,0.26]
[1641265584562,27.92182781,167.32,167.2,7.43703]
[1641265586361,27.92182781,167.32,167.2,7.93703]
[1641265587060,27.66182781,167.32,167.2,7.93703]
[1641265587663,8.56,167.31,167.2,7.93703]
[1641265587865,9.06,167.31,167.2,7.93703]
[1641265588465,9.32,167.31,167.2,7.93703]
[1641265591867,9.32,167.31,167.2,7.67703]
[1641265592170,9.32,167.31,167.2,7.17703]
[1641265592869,10.74669368,167.31,167.2,7.17703]
[1641265593067,10.74669368,167.31,167.11,98.8602]
[1641265593269,47.0759,167.3,167.13,0.5]
[1641265593468,33.84279608,167.29,167.14,26.67070292]
[1641265593668,35.14799608,167.29,167.14,26.67070292]
[1641265593869,35.90799608,167.29,167.14,26.67070292]
[1641265594270,24.426,167.28,167.14,26.67070292]
[1641265594470,8.56,167.27,167.14,26.67070292]
[1641265594669,2.66940738,167.26,167.14,26.67070292]
[1641265594869,8.56,167.25,167.14,26.93070292]
[1641265595074,30.58306221,167.24,167.14,26.67070292]
[1641265595477,30.58306221,167.24,167.14,26.93070292]
[1641265595674,31.08306221,167.24,167.14,26.93070292]
[1641265596376,31.08306221,167.24,167.14,27.43070292]
[1641265596574,31.34306221,167.24,167.14,27.43070292]
[1641265598696,31.34306221,167.24,167.14,27.17070292]
[1641265598896,31.34306221,167.24,167.14,26.67070292]
[1641265599397,31.34306221,167.24,167.12,1.2781]
[1641265599598,31.34306221,167.24,167.12,1.7781]
[1641265599899,39.90306221,167.24,167.12,1.7781]
[1641265600097,39.90306221,167.24,167.12,2.0381]
[1641265601101,39.90306221,167.24,167.12,0.5]
[1641265601299,41.32975589,167.24,167.12,0.5]
[1641265601503,41.32975589,167.24,167.11,128.9768711]
[1641265601899,24.1169,167.23,167.11,128.9768711]
[1641265602098,8.56,167.22,167.11,128.9768711]
[1641265602499,9.32,167.22,167.11,128.9768711]
[1641265603497,9.32,167.22,167.11,128.4768711]
[1641265605001,9.32,167.22,167.11,128.9768711]
[1641265606404,0.76,167.22,167.11,128.9768711]
[1641265606603,0.5,167.22,167.11,128.9768711]
[1641265606803,24.8769,167.23,167.11,128.9768711]
[1641265607002,24.3769,167.23,167.11,128.9768711]
[1641265612209,24.3769,167.23,167.11,128.7168711]
[1641265612407,24.8769,167.23,167.11,128.7168711]
[1641265613010,24.3769,167.23,167.11,128.7168711]
[1641265613409,24.3769,167.23,167.11,130.14356478]
[1641265613615,24.3769,167.23,167.11,130.40356478]
[1641265617218,24.3769,167.23,167.11,128.9768711]
[1641265617920,24.3769,167.23,167.11,128.7168711]
[1641265618120,24.8769,167.23,167.11,128.7168711]
[1641265618624,26.30359368,167.23,167.11,128.7168711]
[1641265620128,24.8769,167.23,167.11,128.7168711]
[1641265620326,24.8769,167.23,167.11,128.9768711]
[1641265625452,24.6169,167.23,167.11,128.9768711]
[1641265625652,24.1169,167.23,167.11,128.9768711]
[1641265626052,1.3733,167.23,167.11,138.96356478]
[1641265626256,2.66940738,167.26,167.11,148.97241046]
[1641265626652,2.66940738,167.26,167.11,156.15330046]
[1641265627052,2.66940738,167.26,167.12,1.3368]
[1641265627255,2.92940738,167.26,167.13,8.56]
[1641265627453,2.92940738,167.26,167.15,23.5561849]
[1641265627856,2.92940738,167.26,167.15,24.3161849]
[1641265628254,26.03150738,167.26,167.15,24.3161849]
[1641265628858,27.28060738,167.26,167.15,24.3161849]
[1641265637264,2.66940738,167.26,167.16,1.42669368]
[1641265637463,2.66940738,167.26,167.16,2.18669368]
[1641265637663,24.5655,167.3,167.16,2.18669368]
[1641265637863,1.3455,167.29,167.17,25.48649368]
[1641265638061,1.6055,167.29,167.17,25.74649368]
[1641265638263,1.6055,167.29,167.18,1.42669368]
[1641265638561,1.6055,167.29,167.19,25.51138124]
[1641265638562,3.00508485,167.28,167.19,25.51138124]
[1641265638962,3.26508485,167.28,167.19,0.76]
[1641265639362,3.26508485,167.28,167.19,0.26]
[1641265639562,3.26508485,167.28,167.18,2.0553]
[1641265639965,3.26508485,167.28,167.19,25.10809131]
[1641265640167,3.26508485,167.28,167.19,33.66809131]
[1641265640366,3.26508485,167.28,167.19,34.42809131]
[1641265646281,3.26508485,167.28,167.19,0.76]
[1641265646473,3.26508485,167.28,167.19,0.5]
[1641265646673,3.26508485,167.28,167.18,2.0553]
[1641265647478,3.26508485,167.28,167.18,27.45016597]
[1641265649078,3.26508485,167.28,167.18,36.01016597]
[1641265649674,23.0233,167.27,167.18,36.01016597]
[1641265650077,23.2833,167.27,167.18,36.01016597]
[1641265650276,24.6017,167.27,167.18,36.01016597]
[1641265651980,52.17195771,167.27,167.18,36.01016597]
[1641265652179,52.17195771,167.27,167.18,8.56]
[1641265652379,52.17195771,167.27,167.16,73.7192]
[1641265652380,57.68295771,167.27,167.16,73.7192]
[1641265653680,52.67195771,167.27,167.16,73.9792]
[1641265656185,52.67195771,167.27,167.16,74.4792]
[1641265656990,8.56,167.26,167.16,73.7192]
[1641265657207,8.56,167.26,167.12,1.2611]
[1641265657409,23.2881,167.25,167.12,1.2611]
[1641265657608,8.56,167.24,167.12,1.2611]
[1641265657809,2.69219178,167.22,167.12,1.2611]
[1641265658010,27.4740876,167.22,167.12,30.57821956]
[1641265658210,27.9740876,167.22,167.12,30.57821956]
[1641265658410,2.95219178,167.22,167.12,30.83821956]
[1641265658813,2.95219178,167.22,167.12,31.33821956]
[1641265659513,0.26,167.22,167.12,31.33821956]
[1641265659711,0.26,167.22,167.13,24.583]
[1641265659910,2.0712,167.23,167.13,25.083]
[1641265660112,2.0712,167.23,167.13,25.343]
[1641265660611,1.3112,167.23,167.13,25.343]
[1641265661412,1.3112,167.23,167.14,9.98669368]
[1641265661814,1.3112,167.23,167.14,10.74669368]
[1641265662415,3.01695512,167.26,167.15,1.42669368]
[1641265662616,3.01695512,167.26,167.16,28.72865987]
[1641265662819,3.01695512,167.26,167.16,29.22865987]
[1641265663015,3.01695512,167.26,167.17,1.42669368]
[1641265663415,3.01695512,167.26,167.17,10.48669368]
[1641265663614,3.01695512,167.26,167.17,10.74669368]
[1641265664216,3.01695512,167.26,167.17,9.06]
[1641265664414,3.01695512,167.26,167.16,28.72865987]
[1641265664626,3.51695512,167.26,167.16,29.22865987]
[1641265664815,3.77695512,167.26,167.16,29.48865987]
[1641265665417,3.27695512,167.26,167.16,29.48865987]
[1641265665618,1.3306,167.25,167.16,38.04865987]
[1641265665818,1.3306,167.25,167.16,29.48865987]
[1641265666020,1.5906,167.25,167.16,29.48865987]
[1641265666419,1.3306,167.25,167.16,29.48865987]
[1641265670421,1.3306,167.25,167.16,38.04865987]
[1641265673426,24.9448,167.29,167.16,38.04865987]
[1641265673624,24.9448,167.29,167.17,24.1879]
[1641265673826,24.9448,167.29,167.17,33.2479]
[1641265674025,24.9448,167.29,167.17,33.5079]
[1641265674225,24.9448,167.29,167.18,1.2593]
[1641265674425,24.9448,167.29,167.19,8.56]
[1641265674626,2.82500342,167.28,167.2,25.99207127]
[1641265674827,2.82500342,167.28,167.2,35.05207127]
[1641265675130,0.26,167.28,167.2,35.31207127]
[1641265675328,0.26,167.28,167.2,34.81207127]
[1641265675528,25.7048,167.29,167.2,34.81207127]
[1641265675929,27.0369,167.29,167.2,34.81207127]
[1641265676529,2.58657121,167.28,167.2,34.81207127]
[1641265676732,2.58657121,167.28,167.2,35.31207127]
[1641265676932,2.84657121,167.28,167.2,35.31207127]
[1641265677534,2.58657121,167.28,167.2,35.31207127]
[1641265677734,26.2769,167.29,167.2,35.31207127]
[1641265677932,26.2769,167.29,167.2,40.87007127]
[1641265678534,1.2603,167.35,167.2,40.87007127]
[1641265678836,2.78094291,167.28,167.21,24.195]
[1641265679033,2.78094291,167.28,167.22,8.56]
[1641265679433,2.78094291,167.28,167.22,9.06]
[1641265679636,2.78094291,167.28,167.22,8.56]
[1641265680039,3.04094291,167.28,167.22,8.56]
[1641265680237,3.04094291,167.28,167.21,24.195]
[1641265680435,3.04094291,167.28,167.21,24.695]
[1641265680634,24.3497,167.32,167.21,24.955]
[1641265680836,1.3407,167.31,167.21,24.955]
[1641265681237,1.8407,167.31,167.21,24.955]
[1641265681439,1.8407,167.31,167.21,26.2431]
[1641265682238,2.96360159,167.3,167.21,26.2431]
[1641265682438,3.46360159,167.3,167.21,26.2431]
[1641265682640,3.72360159,167.3,167.21,26.2431]
[1641265686343,1.2739,167.29,167.21,26.2431]
[1641265691675,0.5,167.3,167.21,26.2431]
[1641265691875,24.3497,167.32,167.21,42.2291]
[1641265692077,25.1097,167.32,167.21,42.2291]
[1641265692273,24.3497,167.32,167.21,42.2291]
[1641265693678,25.6202,167.32,167.21,42.2291]
[1641265704491,25.6202,167.32,167.21,43.65579368]
[1641265706493,25.6202,167.32,167.21,36.22979368]
[1641265707893,25.6202,167.32,167.21,34.8031]
[1641265713194,25.6202,167.32,167.21,36.22979368]
[1641265717926,25.6202,167.32,167.21,42.79079368]
[1641265718738,1.2705,167.32,167.21,42.79079368]
[1641265718929,1.2603,167.35,167.22,7.17617]
[1641265719130,2.77631068,167.37,167.23,32.6132]
[1641265719329,2.77631068,167.37,167.24,7.17531]
[1641265719529,2.77631068,167.37,167.25,9.8456]
[1641265719730,2.77631068,167.37,167.27,23.90731612]
[1641265720029,2.77631068,167.37,167.27,24.66731612]
[1641265720030,3.03631068,167.37,167.27,24.66731612]
[1641265720631,1.374,167.36,167.27,24.66731612]
[1641265721234,1.374,167.36,167.27,33.22731612]
[1641265724735,1.374,167.36,167.27,34.6540098]
[1641265725135,48.1569,167.39,167.27,34.6540098]
[1641265725338,48.1569,167.39,167.27,41.8280398]
[1641265725938,2.17979904,167.38,167.28,25.6154]
[1641265726137,2.17979904,167.38,167.29,8.56]
[1641265726340,2.17979904,167.38,167.29,16.614]
[1641265726538,2.17979904,167.38,167.29,16.874]
[1641265727742,2.17979904,167.38,167.29,16.614]
[1641265728341,3.54539904,167.38,167.29,9.06]
[1641265728945,3.54539904,167.38,167.29,9.32]
[1641265732448,23.8837,167.37,167.29,9.32]
[1641265735653,23.8837,167.37,167.29,10.74669368]
[1641265736880,3.54539904,167.38,167.29,10.74669368]
[1641265738677,2.17979904,167.38,167.29,10.74669368]
[1641265742079,1.323,167.4,167.29,10.74669368]
[1641265742279,1.823,167.4,167.3,24.5667]
[1641265742481,1.823,167.4,167.31,8.56]
[1641265742779,1.823,167.4,167.31,9.98669368]
[1641265742979,1.823,167.4,167.31,12.00769368]
[1641265743180,1.823,167.4,167.32,1.42669368]
[1641265743379,1.323,167.4,167.32,10.48669368]
[1641265743582,24.8516,167.45,167.32,10.74669368]
[1641265743800,1.3004,167.44,167.33,26.15149368]
[1641265743982,1.2974,167.49,167.34,8.56]
[1641265744183,1.2697,167.48,167.35,96.5839]
[1641265744384,4.29298895,167.48,167.36,8.56]
[1641265744582,4.29298895,167.48,167.36,8.82]
[1641265744783,4.29298895,167.48,167.37,55.3269972]
[1641265744982,4.29298895,167.48,167.38,8.56]
[1641265745383,4.29298895,167.48,167.38,10.74669368]
[1641265745582,4.29298895,167.48,167.39,1.42669368]
[1641265745784,4.29298895,167.48,167.4,8.56]
[1641265745986,4.29298895,167.48,167.4,9.32]
[1641265746185,1.2697,167.48,167.41,1.42669368]
[1641265746385,1.2697,167.48,167.41,10.48669368]
[1641265746586,1.2697,167.48,167.41,10.74669368]
[1641265746785,1.2697,167.48,167.42,1.42669368]
[1641265746987,1.2697,167.48,167.42,2.18669368]
[1641265747187,3.62724873,167.48,167.42,2.18669368]
[1641265748787,3.62724873,167.48,167.42,0.76]
[1641265748989,3.62724873,167.48,167.41,8.56]
[1641265749188,23.86264482,167.47,167.41,8.56]
[1641265749989,24.12264482,167.47,167.41,8.56]
[1641265750789,24.12264482,167.47,167.37,39.7078972]
[1641265750989,23.5549,167.46,167.37,40.4678972]
[1641265751490,23.5549,167.46,167.37,39.9678972]
[1641265751690,24.8799,167.46,167.37,39.9678972]
[1641265752891,24.8799,167.46,167.37,40.4678972]
[1641265753292,24.8799,167.46,167.37,40.2078972]
[1641265754493,24.8799,167.46,167.37,40.4678972]
[1641265757595,24.8799,167.46,167.37,45.1408972]
[1641265759593,24.8799,167.46,167.37,40.4678972]
[1641265770903,25.1399,167.46,167.37,40.4678972]
[1641265773002,24.8799,167.46,167.37,40.4678972]
[1641265779311,24.8799,167.46,167.37,40.2078972]
[1641265780614,24.8799,167.46,167.37,39.9678972]
[1641265781918,24.8799,167.46,167.37,40.4678972]
[1641265784319,24.8799,167.46,167.37,40.2078972]
[1641265785637,24.8799,167.46,167.37,40.4678972]
[1641265798051,55.21762173,167.46,167.37,40.2078972]
[1641265799553,55.21762173,167.46,167.37,40.4678972]
[1641265799753,24.8799,167.46,167.37,40.4678972]
[1641265801055,24.8799,167.46,167.37,9.32]
[1641265801258,25.3799,167.46,167.37,9.32]
[1641265802954,25.3799,167.46,167.34,8.56]
[1641265802955,25.6399,167.46,167.34,8.56]
[1641265803158,25.6399,167.46,167.34,0.5]
[1641265803758,25.6399,167.46,167.33,7.67145]
[1641265803956,25.6399,167.46,167.34,24.95754524]
[1641265804356,25.6399,167.46,167.34,25.71754524]
[1641265808771,25.6399,167.46,167.34,0.76]
[1641265808970,8.56,167.45,167.33,7.93145]
[1641265809368,9.32,167.45,167.33,7.43145]
[1641265809569,10.74669368,167.45,167.33,7.43145]
[1641265810469,2.6628334,167.43,167.33,7.43145]
[1641265810669,11.2228334,167.43,167.33,7.43145]
[1641265810891,11.9828334,167.43,167.33,7.43145]
[1641265811296,24.4231,167.42,167.33,7.43145]
[1641265811496,24.6831,167.42,167.33,7.43145]
[1641265811695,25.1831,167.42,167.33,7.43145]
[1641265812695,25.1831,167.42,167.33,7.17145]
[1641265812897,8.56,167.41,167.25,74.5353]
[1641265813095,10.24669368,167.41,167.23,8.771]
[1641265813297,24.9864,167.4,167.23,8.771]
[1641265813494,9.9088,167.39,167.23,8.771]
[1641265813694,22.46679596,167.38,167.24,22.54563777]
[1641265813896,2.41661148,167.37,167.24,22.54563777]
[1641265814097,2.67661148,167.37,167.24,23.30563777]
[1641265814296,22.6331,167.36,167.24,23.30563777]
[1641265814496,1.3518,167.35,167.24,23.30563777]
[1641265814996,2.1118,167.35,167.24,23.30563777]
[1641265815396,1.3518,167.35,167.24,23.30563777]
[1641265815597,1.3518,167.35,167.25,23.5862]
[1641265815997,1.3518,167.35,167.25,24.3462]
[1641265816399,1.3518,167.35,167.26,1.2726]
[1641265816602,1.3518,167.35,167.26,1.5326]
[1641265816799,22.6331,167.36,167.26,2.0326]
[1641265817200,23.1331,167.36,167.26,2.0326]
[1641265817799,23.1331,167.36,167.26,0.76]
[1641265818001,23.1331,167.36,167.26,0.5]
[1641265818200,1.3061,167.35,167.24,31.86563777]
[1641265818403,1.8061,167.35,167.25,23.1415]
[1641265818601,1.8061,167.35,167.25,0.26]
[1641265818803,1.3061,167.35,167.25,0.26]
[1641265819002,1.3061,167.35,167.24,55.74133777]
[1641265819403,1.8061,167.35,167.24,31.60563777]
[1641265820607,1.8061,167.35,167.24,31.86563777]
[1641265821106,1.8061,167.35,167.24,23.04563777]
[1641265821307,2.0661,167.35,167.24,22.54563777]
[1641265822510,2.0661,167.35,167.24,22.80563777]
[1641265823412,2.0661,167.35,167.24,22.54563777]
[1641265824814,2.0661,167.35,167.24,22.80563777]
[1641265825314,2.0661,167.35,167.24,23.30563777]
[1641265825714,2.0661,167.35,167.24,22.80563777]
[1641265825914,2.0661,167.35,167.24,0.5]
[1641265826117,2.0661,167.35,167.22,23.471]
[1641265826317,23.8401,167.34,167.22,23.971]
[1641265826519,24.1001,167.34,167.22,23.971]
[1641265826722,24.6001,167.34,167.22,23.971]
[1641265826919,24.6001,167.34,167.23,31.49325914]
[1641265827321,24.3401,167.34,167.23,31.99325914]
[1641265827521,1.3724,167.33,167.24,22.6695]
[1641265827921,1.3724,167.33,167.24,23.1695]
[1641265828122,1.3724,167.33,167.24,24.6836]
[1641265829326,1.6324,167.33,167.24,24.6836]
[1641265830042,1.3724,167.33,167.24,24.6836]
[1641265831040,1.6324,167.33,167.24,24.6836]
[1641265831641,1.6324,167.33,167.24,24.4236]
[1641265833042,1.6324,167.33,167.24,24.6836]
[1641265837351,1.3724,167.33,167.24,24.6836]
[1641265837753,1.3724,167.33,167.24,33.2436]
[1641265837953,1.2664,167.4,167.24,33.2436]
[1641265838150,1.3249,167.39,167.24,33.2436]
[1641265838353,1.8249,167.39,167.24,34.67029368]
[1641265838550,2.57852359,167.38,167.24,33.2436]
[1641265838951,3.07852359,167.38,167.24,33.2436]
[1641265839153,3.07852359,167.38,167.24,112.7401]
[1641265839655,1.2689,167.37,167.24,112.7401]
[1641265839852,1.7689,167.37,167.24,112.7401]
[1641265840054,2.0289,167.37,167.24,112.7401]
[1641265841159,1.7689,167.37,167.24,112.7401]
[1641265847170,2.57852359,167.38,167.24,112.7401]
[1641265847365,2.57852359,167.38,167.24,114.16679368]
[1641265850665,2.57852359,167.38,167.24,113.90679368]
[1641265851966,2.57852359,167.38,167.24,114.16679368]
[1641265854970,3.85912359,167.38,167.24,114.16679368]
[1641265856271,3.85912359,167.38,167.24,112.7401]
[1641265857774,3.85912359,167.38,167.24,114.16679368]
[1641265860587,3.85912359,167.38,167.24,124.32044137]
[1641265861186,3.85912359,167.38,167.24,111.9801]
[1641265861391,4.61912359,167.38,167.24,111.9801]
[1641265861590,23.0062,167.37,167.24,111.9801]
[1641265861991,23.7662,167.37,167.24,111.9801]
[1641265862393,23.7662,167.37,167.24,112.4801]
[1641265862592,23.7662,167.37,167.24,112.2401]
[1641265862797,1.2766,167.36,167.24,112.2401]
[1641265862991,1.5366,167.36,167.24,112.2401]
[1641265864010,2.0366,167.36,167.24,112.7401]
[1641265865414,1.5366,167.36,167.24,112.7401]
[1641265865618,1.2766,167.36,167.24,112.7401]
[1641265866219,9.9249,167.44,167.24,124.32044137]
[1641265866417,202.5885,167.46,167.25,7.17488]
[1641265866617,48.8433,167.45,167.26,33.5502]
[1641265866817,48.8433,167.45,167.26,50.87829769]
[1641265867116,48.8433,167.45,167.27,10.15364769]
[1641265867318,2.82905754,167.44,167.28,32.0683]
[1641265867520,2.82905754,167.44,167.28,35.04289368]
[1641265867718,2.82905754,167.44,167.29,1.42669368]
[1641265867921,2.82905754,167.44,167.3,39.89604802]
[1641265868320,2.82905754,167.44,167.31,1.42669368]
[1641265868521,1.2464,167.43,167.32,9.8888]
[1641265868924,1.2464,167.43,167.33,1.42669368]
[1641265869320,1.2464,167.43,167.33,2.18669368]
[1641265869722,1.2464,167.43,167.34,1.42669368]
[1641265869920,1.2464,167.43,167.34,1.92669368]
[1641265870124,1.2464,167.43,167.34,0.76]
[1641265870621,1.2464,167.43,167.32,84.7456]
[1641265870823,1.2464,167.43,167.33,8.56]
[1641265871022,1.2464,167.43,167.33,8.82]
[1641265871221,1.2464,167.43,167.33,9.32]
[1641265872222,23.0511,167.48,167.34,1.42669368]
[1641265872424,24.3647,167.48,167.34,34.61219368]
[1641265872725,24.3647,167.48,167.34,34.87219368]
[1641265873124,27.05277553,167.48,167.35,1.3126]
[1641265873323,1.3136,167.48,167.36,8.56]
[1641265873523,46.5871,167.51,167.37,24.4336]
[1641265873724,46.5871,167.51,167.38,39.28623211]
[1641265873923,46.5871,167.51,167.38,41.16143211]
[1641265874123,46.5871,167.51,167.39,1.42669368]
[1641265874326,46.5871,167.51,167.4,8.56]
[1641265874525,2.96971472,167.52,167.4,14.717]
[1641265874725,2.96971472,167.52,167.41,1.42669368]
[1641265874926,2.96971472,167.52,167.42,8.56]
[1641265875328,2.96971472,167.52,167.42,9.32]
[1641265883329,2.96971472,167.52,167.43,1.42669368]
[1641265883629,2.96971472,167.52,167.43,10.24669368]
[1641265883830,2.96971472,167.52,167.43,10.74669368]
[1641265884028,2.96971472,167.52,167.44,1.42669368]
[1641265884231,2.96971472,167.52,167.45,31.36409236]
[1641265884430,2.96971472,167.52,167.45,31.86409236]
[1641265884631,2.96971472,167.52,167.45,32.12409236]
[1641265885832,2.96971472,167.52,167.45,31.86409236]
[1641265887134,2.96971472,167.52,167.45,9.32]
[1641265887934,2.96971472,167.52,167.45,9.06]
[1641265889536,2.96971472,167.52,167.45,9.32]
[1641265891235,2.96971472,167.52,167.45,8.82]
[1641265892236,3.22971472,167.52,167.45,8.56]
[1641265892438,3.72971472,167.52,167.4,8.56]
[1641265892638,23.9202,167.51,167.4,9.32]
[1641265892837,24.4202,167.51,167.4,9.32]
[1641265893039,24.6802,167.51,167.4,9.32]
[1641265893241,1.3684,167.5,167.4,9.32]
[1641265895547,1.3684,167.5,167.4,9.06]
[1641265895750,2.1284,167.5,167.4,9.06]
[1641265896947,2.1284,167.5,167.4,9.32]
[1641265898466,2.1284,167.5,167.4,8.82]
[1641265899366,2.1284,167.5,167.4,8.56]
[1641265899567,10.6884,167.5,167.34,24.7161]
[1641265899768,24.6392,167.49,167.35,0.5]
[1641265899972,25.3992,167.49,167.35,0.5]
[1641265900370,25.3992,167.49,167.34,28.60223815]
[1641265900569,1.3042,167.48,167.34,28.60223815]
[1641265900773,1.3042,167.48,167.34,28.86223815]
[1641265900969,2.0642,167.48,167.34,28.86223815]
[1641265902371,31.27623472,167.46,167.34,28.86223815]
[1641265902572,23.4238,167.45,167.34,28.86223815]
[1641265902971,23.9238,167.45,167.34,28.86223815]
[1641265903171,1.2979,167.44,167.34,28.86223815]
[1641265903373,1.7979,167.44,167.34,28.86223815]
[1641265903872,1.2979,167.44,167.34,0.5]
[1641265904271,1.2979,167.44,167.33,0.5]
[1641265904471,1.5579,167.44,167.29,9.06]
[1641265905373,2.0579,167.44,167.29,9.32]
[1641265906174,10.6179,167.44,167.29,8.56]
[1641265906375,24.8857,167.43,167.29,8.56]
[1641265906576,25.1457,167.43,167.29,8.56]
[1641265906774,25.6457,167.43,167.29,8.56]
[1641265906975,8.56,167.42,167.27,7.17403]
[1641265907375,9.32,167.42,167.27,7.17403]
[1641265907876,2.83683925,167.4,167.27,7.17403]
[1641265908077,11.65683925,167.4,167.27,7.17403]
[1641265908277,12.15683925,167.4,167.27,7.17403]
[1641265908580,30.17376783,167.39,167.27,7.17403]
[1641265908777,56.31566783,167.39,167.27,7.93403]
[1641265908975,57.07566783,167.39,167.27,7.93403]
[1641265913387,65.63566783,167.39,167.27,7.43403]
[1641265914286,65.63566783,167.39,167.27,7.17403]
[1641265914485,67.06236151,167.39,167.27,7.17403]
[1641265915687,8.9697,167.38,167.27,7.17403]
[1641265915910,8.56,167.37,167.27,7.17403]
[1641265916086,33.128,167.37,167.27,7.17403]
[1641265916292,33.628,167.37,167.27,7.17403]
[1641265916685,1.3555,167.36,167.27,7.17403]
[1641265916887,1.8555,167.36,167.27,7.17403]
[1641265917088,2.1155,167.36,167.27,7.17403]
[1641265921394,1.8555,167.36,167.27,7.17403]
[1641265921591,1.8555,167.36,167.27,7.43403]
[1641265922192,1.8555,167.36,167.28,28.32772604]
[1641265922393,8.853,167.39,167.28,35.73972604]
[1641265922695,2.83683925,167.4,167.29,1.42669368]
[1641265922895,2.83683925,167.4,167.29,1.92669368]
[1641265923094,2.83683925,167.4,167.29,23.9194]
[1641265923797,1.3595,167.41,167.3,9.98669368]
[1641265924004,1.3595,167.41,167.3,10.24669368]
[1641265924199,1.3595,167.41,167.31,1.42669368]
[1641265924399,1.3595,167.41,167.31,1.92669368]
[1641265924600,1.3595,167.41,167.31,2.18669368]
[1641265924804,4.23434469,167.41,167.32,1.42669368]
[1641265925005,4.23434469,167.41,167.32,1.68669368]
[1641265925305,4.23434469,167.41,167.32,2.18669368]
[1641265925505,4.23434469,167.41,167.32,0.76]
[1641265925705,4.49434469,167.41,167.32,0.26]
[1641265925905,4.49434469,167.41,167.3,83.6175]
[1641265926106,4.99434469,167.41,167.3,83.6175]
[1641265926509,23.2841,167.4,167.3,83.6175]
[1641265926907,23.5441,167.4,167.3,83.6175]
[1641265930110,23.2841,167.4,167.3,83.6175]
[1641265930310,23.2841,167.4,167.3,85.04419368]
[1641265935629,23.2841,167.4,167.3,83.6175]
[1641265936530,23.2841,167.4,167.3,85.04419368]
[1641265946855,23.2841,167.4,167.3,86.34199368]
[1641265947051,23.2841,167.4,167.3,85.84199368]
[1641265948251,23.2841,167.4,167.3,86.34199368]
[1641265948653,23.2841,167.4,167.3,84.6553]
[1641265948855,23.5441,167.4,167.3,84.1553]
[1641265949780,1.3219,167.39,167.3,84.1553]
[1641265949980,29.91907183,167.38,167.3,84.4153]
[1641265951178,30.17907183,167.38,167.3,84.1553]
[1641265951379,30.17907183,167.38,167.3,75.5953]
[1641265951778,30.17907183,167.38,167.3,74.2975]
[1641265951981,30.17907183,167.38,167.27,7.17403]
[1641265952179,24.2998,167.37,167.27,7.17403]
[1641265952583,24.5598,167.37,167.27,7.43403]
[1641265952780,2.312874,167.35,167.27,7.43403]
[1641265954281,2.312874,167.35,167.27,7.17403]
[1641265954584,2.572874,167.35,167.27,7.17403]
[1641265954983,1.3666,167.36,167.27,7.17403]
[1641265955184,24.2998,167.37,167.27,7.17403]
[1641265955882,2.64218895,167.38,167.27,7.43403]
[1641265956084,2.64218895,167.38,167.28,23.9348]
[1641265956585,2.64218895,167.38,167.28,24.1948]
[1641265956785,2.64218895,167.38,167.28,25.5346]
[1641265959587,2.90218895,167.38,167.28,25.5346]
[1641265960588,1.2794,167.37,167.28,25.5346]
[1641265960789,1.2794,167.37,167.28,25.2746]
[1641265960989,1.5394,167.37,167.28,25.2746]
[1641265961293,1.5394,167.37,167.27,7.17403]
[1641265961991,1.5394,167.37,167.27,7.43403]
[1641265964091,1.2794,167.37,167.27,8.86072368]
[1641265964298,24.7021,167.4,167.27,31.86882368]